bitfinex-derivatives/quotes_ETHF0:USTF0_20250116
["timestamp","ask_amount","ask_price","bid_price","bid_amount"]
[1737046333787,1.60316,3340.8,3340.7,0.59876]
[1737046333982,1.0044,3340.8,3340.7,0.59876]
[1737046334187,4.2607,3341.7,3340.6,43.72567434]
[1737046334391,1.0044,3341.5,3340.6,43.72567434]
[1737046334685,1.0044,3341.5,3341.4,0.59864]
[1737046334889,1.60302,3341.5,3341.4,0.59864]
[1737046335092,1.0044,3341.5,3340.7,0.9768]
[1737046335392,3.80649,3341.1,3341.0,0.5987]
[1737046335584,3.2078,3341.1,3341.0,0.5987]
[1737046336186,0.59865,3341.4,3341.3,0.59865]
[1737046336384,4.2122,3341.5,3341.3,0.59865]
[1737046336778,4.2122,3341.5,3341.4,0.59864]
[1737046337293,1.0044,3341.5,3341.4,0.59864]
[1737046337997,1.0044,3341.5,3341.4,41.39864]
[1737046339779,3.2078,3341.9,3341.4,41.39864]
[1737046339979,1.0225,3342.1,3341.6,3.2078]
[1737046340183,1.0225,3342.1,3342.0,0.59853]
[1737046340383,3.48046433,3342.2,3342.1,0.59851]
[1737046342286,3.48046433,3342.2,3342.0,3.2078]
[1737046342287,0.59846,3342.4,3342.0,3.2078]
[1737046342487,0.59846,3342.4,3342.3,0.59848]
[1737046342685,0.59846,3342.4,3342.0,4.70413]
[1737046342686,3.2078,3342.4,3341.8,2.92567434]
[1737046342987,0.59849,3342.3,3342.2,0.59848]
[1737046343388,5.99902433,3342.6,3341.9,2.09492]
[1737046343389,0.59847,3342.4,3341.9,2.09492]
[1737046343588,5.10140433,3342.6,3342.5,0.59844]
[1737046343793,5.64108622,3342.6,3342.5,0.59844]
[1737046344580,5.64108622,3342.6,3342.5,1.88944]
[1737046344581,4.61858622,3342.6,3342.5,1.88944]
[1737046345189,3.48994748,3342.6,3342.5,42.85004]
[1737046345386,7.48e-06,3342.6,3342.5,45.77571434]
[1737046345881,7.48e-06,3342.6,3342.5,42.85004]
[1737046346291,7.48e-06,3342.6,3342.5,42.68944]
[1737046346491,0.59832,3343.2,3343.1,0.59833]
[1737046347095,0.59834,3343.1,3342.6,2.92567434]
[1737046347393,0.44890772,3343.6,3342.6,2.92567434]
[1737046347698,0.59838,3342.9,3342.8,0.59838]
[1737046347900,0.59839,3342.9,3342.8,0.59838]
[1737046348099,0.59843,3342.6,3342.5,0.59843]
[1737046348389,0.59841,3342.7,3342.6,0.59841]
[1737046349398,1.106,3342.8,3342.2,1.291]
[1737046349689,3.2078,3342.6,3341.8,1.29]
[1737046349894,0.59849,3342.3,3342.2,0.59849]
[1737046350289,0.59849,3342.3,3341.8,1.29]
[1737046350597,0.59849,3342.3,3342.2,0.59849]
[1737046350794,7.82638622,3342.6,3341.8,2.78639]
[1737046350997,7.82638622,3342.6,3342.5,0.59844]
[1737046351201,4.61858622,3342.6,3342.5,0.59844]
[1737046351699,5.21700622,3342.6,3342.5,0.59844]
[1737046351889,4.61858622,3342.6,3342.5,0.59844]
[1737046352192,1.106,3342.8,3342.1,6.13347434]
[1737046352396,1.106,3342.8,3342.1,2.92567434]
[1737046352589,1.7044,3342.8,3342.2,1.49624]
[1737046352790,1.7044,3342.8,3342.6,0.5984]
[1737046353093,1.7044,3342.8,3342.7,0.5984]
[1737046353094,1.106,3342.8,3342.7,0.5984]
[1737046353698,7.82638622,3343.0,3342.9,0.59837]
[1737046353899,7.82638622,3343.0,3342.9,41.39837]
[1737046354295,4.61858622,3343.0,3342.9,44.32404434]
[1737046354495,4.61858622,3343.0,3342.9,41.39837]
[1737046354696,0.59832,3343.2,3342.9,40.8]
[1737046354896,0.59832,3343.2,3343.1,0.59833]
[1737046355296,1.68381,3343.3,3343.2,0.59831]
[1737046355496,0.59835,3343.1,3343.0,0.59833]
[1737046355994,1.0855,3343.3,3342.9,40.8]
[1737046356201,1.68382,3343.3,3343.2,0.59831]
[1737046356992,1.0855,3343.3,3343.2,0.59831]
[1737046357197,1.6838,3343.3,3343.2,0.59831]
[1737046358001,1.0855,3343.3,3343.2,0.59831]
[1737046359597,1.0855,3343.3,3342.9,44.0078]
[1737046359802,0.59832,3343.2,3343.1,0.59832]
[1737046360293,0.59834,3343.1,3343.0,0.59834]
[1737046360493,1.0855,3343.3,3342.8,0.59838]
[1737046360494,0.59838,3342.9,3342.8,0.59838]
[1737046360696,0.59839,3342.8,3342.7,0.5984]
[1737046360894,1.0251,3342.8,3341.9,1.49635]
[1737046361190,0.59843,3342.6,3342.5,0.59843]
[1737046361396,0.59844,3342.5,3342.4,0.59845]
[1737046361602,1.0113,3342.5,3342.4,0.59845]
[1737046361802,0.5985,3342.2,3342.0,40.8]
[1737046361993,0.59848,3342.3,3341.8,1.49639]
[1737046362197,0.59847,3342.4,3342.3,0.59847]
[1737046362393,4.2191,3342.5,3342.4,0.59846]
[1737046362597,1.0113,3342.5,3342.4,0.59846]
[1737046364997,0.59849,3342.3,3342.2,0.59847]
[1737046365196,0.59847,3342.4,3342.3,0.59846]
[1737046365399,1.0113,3342.5,3342.0,1.49633]
[1737046365605,1.0113,3342.5,3342.4,0.59846]
[1737046367205,1.0113,3342.5,3341.9,45.50418]
[1737046367510,0.59849,3342.3,3342.2,0.59848]
[1737046367802,4.2191,3342.5,3341.9,3.2078]
[1737046368005,0.59847,3342.4,3342.3,0.59846]
[1737046369204,0.5985,3342.2,3342.1,0.59849]
[1737046369508,0.59849,3342.3,3342.2,0.59847]
[1737046369709,0.5985,3342.2,3342.1,0.5985]
[1737046370203,4.2191,3342.5,3341.9,1.49638]
[1737046370411,0.59847,3342.4,3342.3,0.59846]
[1737046370800,9.43613622,3342.5,3342.4,0.59846]
[1737046371002,0.59848,3342.4,3342.3,0.59847]
[1737046371407,8.83768622,3342.5,3342.4,0.59846]
[1737046371604,9.43612622,3342.5,3342.4,0.59846]
[1737046371803,0.59846,3342.4,3342.3,0.59846]
[1737046372209,4.81755,3342.5,3342.4,0.59846]
[1737046372911,4.2191,3342.5,3342.4,0.59846]
[1737046374008,1.0113,3342.5,3342.4,0.59846]
[1737046374310,1.60974,3342.5,3342.4,0.59846]
[1737046374507,1.0113,3342.5,3342.4,0.59846]
[1737046374712,1.0113,3342.5,3341.9,3.2078]
[1737046374910,0.59847,3342.4,3342.3,0.59847]
[1737046376018,0.59848,3342.3,3342.2,0.59848]
[1737046376207,0.59847,3342.4,3342.3,0.59846]
[1737046377016,1.0113,3342.5,3341.9,3.2078]
[1737046377312,0.59847,3342.4,3342.3,0.59847]
[1737046378113,1.0113,3342.5,3341.9,5.4782967]
[1737046378315,1.0113,3342.5,3341.9,3.2078]
[1737046378511,1.0113,3342.5,3342.1,0.5985]
[1737046378512,0.5985,3342.2,3342.1,0.5985]
[1737046378715,0.59853,3342.1,3342.0,0.59852]
[1737046378915,0.5985,3342.2,3342.1,0.5985]
[1737046379414,0.5985,3342.2,3342.1,0.59849]
[1737046379611,3.2078,3342.2,3341.6,2.2704967]
[1737046379812,0.59858,3341.8,3341.7,0.59857]
[1737046380112,3.2078,3341.8,3341.3,2.2704967]
[1737046380417,3.2078,3341.4,3340.6,7.51685312]
[1737046380612,1.0953,3341.3,3340.6,9.78734982]
[1737046380812,0.59872,3341.0,3340.9,0.59871]
[1737046381008,1.0953,3341.3,3340.9,0.59871]
[1737046381009,1.0953,3341.3,3340.9,7.7487934]
[1737046381316,2.0877,3341.7,3341.6,0.5986]
[1737046382215,1.0408,3341.7,3341.6,0.5986]
[1737046385619,4.6504435,3341.9,3341.8,0.59856]
[1737046385816,5.81305438,3342.0,3341.9,0.59855]
[1737046387015,6.76444878,3342.1,3341.7,2.92428942]
[1737046387220,0.44908851,3342.0,3341.9,0.59855]
[1737046387518,3.53636752,3342.1,3342.0,0.59853]
[1737046387819,1.37126752,3342.1,3342.0,41.39853]
[1737046388021,7.52e-06,3342.1,3342.0,46.39853]
[1737046388315,7.52e-06,3342.1,3342.0,41.39853]
[1737046389115,1.0744,3342.8,3342.7,0.5984]
[1737046389620,1.6728,3342.8,3342.7,0.5984]
[1737046389815,1.0744,3342.8,3342.7,0.5984]
[1737046391316,1.67279,3342.8,3342.7,0.5984]
[1737046391511,1.0744,3342.8,3342.7,0.5984]
[1737046393323,1.67279,3342.8,3342.7,0.5984]
[1737046393526,1.0744,3342.8,3342.7,0.5984]
[1737046393817,1.0744,3342.8,3342.7,3.52268942]
[1737046394022,5.81305438,3343.3,3343.2,0.59831]
[1737046394724,2.0868,3343.4,3343.1,2.92428942]
[1737046394925,2.0868,3343.4,3343.3,0.5983]
[1737046399432,5.81227756,3343.9,3343.3,1.49575]
[1737046399636,5.81227756,3343.9,3343.8,3.52249942]
[1737046400123,5.81227756,3343.9,3343.8,44.32249942]
[1737046401027,1.0559,3344.1,3343.8,43.72428942]
[1737046401234,3.37628983,3344.1,3344.0,0.59817]
[1737046401830,2.32038983,3344.1,3344.0,0.59817]
[1737046402325,1.69026983,3344.2,3344.1,0.59815]
[1737046402521,5.81227756,3344.8,3344.7,0.59805]
[1737046402723,5.81227756,3344.8,3344.7,3.80585]
[1737046402929,5.81227756,3344.8,3344.7,48.81813942]
[1737046403123,6.92787934,3345.2,3344.7,53.22008942]
[1737046403319,6.27702934,3345.2,3345.1,6.73005942]
[1737046403633,8.08252589,3345.3,3345.1,6.13208942]
[1737046403822,0.59776,3346.3,3345.1,6.13208942]
[1737046403823,8.08252589,3346.2,3345.1,6.13208942]
[1737046404123,8.08252589,3346.2,3346.0,0.59781]
[1737046404323,3.8056,3346.1,3345.9,0.59782]
[1737046404523,3.8056,3346.1,3346.0,0.03932558]
[1737046405328,3.2078,3346.1,3345.4,0.59792]
[1737046405523,3.2078,3346.1,3345.3,1.288]
[1737046405524,0.59785,3345.8,3345.3,1.288]
[1737046405726,0.59787,3345.8,3345.5,0.5979]
[1737046406031,3.2078,3346.1,3345.3,1.288]
[1737046406232,1.70748,3345.7,3345.3,1.88593]
[1737046406533,0.59789,3345.6,3345.3,1.88593]
[1737046406728,3.2078,3345.6,3345.1,6.13208942]
[1737046406925,0.59798,3345.1,3344.8,4.21228942]
[1737046407225,0.598,3345.0,3344.9,0.598]
[1737046407529,0.5979,3345.5,3344.8,4.21228942]
[1737046407728,0.59796,3345.2,3345.1,0.59797]
[1737046407923,0.59796,3345.2,3345.0,0.59798]
[1737046408126,4.299,3345.6,3344.8,4.21228942]
[1737046408433,4.299,3345.6,3344.8,1.288]
[1737046408434,0.59801,3344.9,3344.8,1.288]
[1737046408730,0.59801,3344.9,3344.8,1.88603]
[1737046408918,0.59801,3344.9,3344.8,1.288]
[1737046409125,0.59801,3344.9,3344.8,1.88603]
[1737046409617,0.59801,3344.9,3344.8,1.288]
[1737046410027,0.59806,3344.7,3344.6,0.59806]
[1737046410232,1.0277,3344.8,3344.5,1.286]
[1737046410431,1.0277,3344.8,3344.3,1.286]
[1737046410624,1.0277,3344.8,3344.1,3.2078]
[1737046410625,0.59807,3344.6,3344.5,0.59808]
[1737046410923,1.1033,3344.7,3344.2,1.286]
[1737046411130,0.59809,3344.5,3344.4,0.59809]
[1737046411521,0.59813,3344.3,3344.2,0.59813]
[1737046411719,0.59814,3344.2,3344.1,1.88415]
[1737046412029,0.59809,3344.5,3344.3,0.59811]
[1737046412230,2.1994,3344.7,3344.1,4.4938]
[1737046412431,0.59809,3344.5,3344.4,0.5981]
[1737046412933,2.1994,3344.7,3344.4,0.5981]
[1737046413233,0.59811,3344.4,3344.3,0.59811]
[1737046413434,0.59809,3344.5,3344.4,0.59809]
[1737046413736,4.2355,3344.8,3344.3,2.92428942]
[1737046413737,1.0277,3344.8,3344.3,2.92428942]
[1737046414033,1.0277,3344.8,3344.7,3.52233942]
[1737046414437,1.0277,3344.8,3344.7,44.32233942]
[1737046416327,1.0277,3344.8,3344.7,40.8]
[1737046416527,1.0277,3344.8,3344.7,41.39805]
[1737046416939,1.0277,3344.8,3344.7,0.59805]
[1737046417431,1.62573,3344.8,3344.7,41.39805]
[1737046418033,1.62573,3344.8,3344.7,40.8]
[1737046418232,0.59809,3344.5,3344.4,0.59809]
[1737046418634,0.59807,3344.6,3344.5,0.59808]
[1737046419531,4.2355,3344.8,3344.3,42.086]
[1737046419733,0.59806,3344.6,3344.5,0.59807]
[1737046419933,0.59805,3344.7,3344.6,0.59805]
[1737046420141,1.62574,3344.8,3344.7,0.59805]
[1737046420534,1.0277,3344.8,3344.7,0.59805]
[1737046420849,1.62573,3344.8,3344.7,0.59805]
[1737046421042,0.59807,3344.6,3344.5,0.59807]
[1737046421235,0.59805,3344.7,3344.6,0.59806]
[1737046422031,1.0277,3344.8,3344.3,42.086]
[1737046422237,4.2355,3344.8,3344.3,42.086]
[1737046422431,0.59805,3344.7,3344.6,0.59806]
[1737046422638,4.2355,3344.8,3344.3,42.086]
[1737046423039,0.59808,3344.6,3344.5,0.59807]
[1737046423243,0.59809,3344.5,3344.4,0.59809]
[1737046423542,0.59808,3344.6,3344.5,0.59807]
[1737046424132,4.2355,3344.8,3344.7,0.59805]
[1737046424336,4.2355,3344.8,3344.4,1.49526]
[1737046424337,3.2078,3345.6,3345.1,0.59797]
[1737046424537,0.59793,3345.4,3345.3,0.59792]
[1737046425039,0.59794,3345.3,3345.2,41.39795]
[1737046425240,0.59797,3345.2,3345.1,0.59797]
[1737046426543,0.59795,3345.3,3345.2,0.59793]
[1737046427235,3.1536,3345.5,3344.1,3.2078]
[1737046427437,0.59805,3344.8,3344.7,0.59804]
[1737046427743,0.59802,3344.9,3344.8,0.59801]
[1737046428035,0.59799,3345.0,3344.5,0.59806]
[1737046428240,0.59806,3344.7,3344.6,0.59806]
[1737046428442,0.59814,3344.3,3344.2,0.59813]
[1737046428642,3.2078,3344.7,3344.2,0.59812]
[1737046428946,3.2078,3344.3,3343.4,2.26783128]
[1737046429136,4.70312,3344.3,3343.4,3.55383128]
[1737046429445,0.59822,3343.8,3343.7,0.59822]
[1737046430738,0.5982,3343.9,3343.8,0.59821]
[1737046431245,2.1835,3344.1,3343.4,3.55383128]
[1737046431439,0.59819,3343.9,3343.8,0.5982]
[1737046432339,0.59819,3344.0,3343.4,0.59828]
[1737046432545,2.78166,3344.1,3344.0,0.59817]
[1737046432744,1.1283,3344.2,3344.0,3.51893348]
[1737046432937,1.1283,3344.2,3344.1,0.59815]
[1737046433339,1.1283,3344.2,3344.1,41.39815]
[1737046434835,5.3353,3344.8,3344.1,40.8]
[1737046435039,0.59808,3344.6,3344.5,0.59806]
[1737046437451,1.66296,3344.7,3344.6,0.59806]
[1737046437652,1.0649,3344.7,3344.2,1.286]
[1737046437952,1.0649,3344.7,3343.7,1.286]
[1737046438346,0.59813,3344.3,3344.2,0.59813]
[1737046438657,0.59813,3344.3,3344.2,0.59812]
[1737046441343,0.59817,3344.1,3344.0,0.59815]
[1737046441544,0.59828,3343.4,3343.3,0.59827]
[1737046441749,0.59828,3343.4,3343.1,4.68290312]
[1737046441750,0.59831,3343.2,3343.1,5.28122312]
[1737046442547,0.59831,3343.2,3343.1,4.68290312]
[1737046443256,1.49569,3343.5,3342.8,41.39838]
[1737046443458,1.49569,3343.5,3342.4,3.2078]
[1737046443459,2.1878,3343.1,3342.4,3.2078]
[1737046443666,0.59844,3342.6,3342.5,0.59843]
[1737046443964,1.0703,3343.0,3342.5,40.8]
[1737046444162,0.59838,3342.9,3342.8,0.59838]
[1737046444371,0.59837,3342.9,3342.8,0.59838]
[1737046444667,0.5984,3342.8,3342.7,0.59838]
[1737046444962,0.59838,3342.9,3342.8,0.59837]
[1737046446567,1.0703,3343.0,3342.5,41.39843]
[1737046446568,0.59842,3342.6,3342.5,41.39843]
[1737046447162,3.2078,3342.6,3341.8,0.1136]
[1737046447465,3.2078,3342.6,3342.1,0.5985]
[1737046447668,0.59855,3341.9,3341.8,40.8]
[1737046448362,0.59861,3341.6,3341.5,0.59861]
[1737046448568,3.3223,3342.0,3341.4,3.2078]
[1737046448867,0.59859,3341.7,3341.5,41.39862]
[1737046449068,3.3223,3342.0,3341.5,40.8]
[1737046449366,0.59857,3341.8,3341.5,40.8]
[1737046449568,0.59857,3341.8,3341.7,0.59858]
[1737046449765,0.59859,3341.7,3341.6,0.5986]
[1737046450068,0.59858,3341.8,3341.6,0.59859]
[1737046450372,0.5986,3341.6,3341.5,41.39862]
[1737046450568,3.3223,3342.0,3341.5,40.8]
[1737046450773,0.5986,3341.6,3341.5,40.8]
[1737046451068,0.59858,3341.8,3341.6,0.59859]
[1737046451267,3.3223,3342.0,3341.6,0.59859]
[1737046451467,6.24306348,3342.0,3341.0,3.2078]
[1737046451679,0.59866,3341.3,3341.2,0.59867]
[1737046451869,3.2078,3341.7,3341.3,0.59864]
[1737046452068,3.2078,3341.7,3341.0,3.2078]
[1737046452069,3.2078,3341.7,3341.2,0.59866]
[1737046452373,3.2078,3341.7,3341.0,3.2078]
[1737046452374,0.5986,3341.6,3341.0,3.2078]
[1737046452569,0.59869,3341.1,3341.0,3.2078]
[1737046452761,3.2078,3341.3,3340.6,3.2078]
[1737046452961,0.59874,3340.9,3340.7,0.59876]
[1737046453167,1.1406,3341.0,3340.6,3.2078]
[1737046453570,1.1406,3341.0,3340.9,0.59873]
[1737046453967,3.2078,3341.7,3341.5,0.59862]
[1737046454171,1.1406,3341.6,3341.4,0.59863]
[1737046454475,1.1406,3341.6,3341.5,0.59862]
[1737046455174,1.1406,3341.6,3341.5,41.39862]
[1737046455375,1.7392,3341.6,3341.5,41.39862]
[1737046455870,1.1406,3341.6,3341.5,41.39862]
[1737046456070,1.7392,3341.6,3341.5,40.8]
[1737046457184,4.06136348,3341.6,3340.5,1.286]
[1737046457477,3.2078,3341.3,3340.6,1.286]
[1737046457780,0.59871,3341.1,3340.9,0.59872]
[1737046458078,0.59871,3341.1,3340.7,40.8]
[1737046458284,1.1293,3341.2,3340.7,40.8]
[1737046458285,1.72798,3341.2,3340.7,40.8]
[1737046458473,0.5987,3341.1,3341.0,0.5987]
[1737046459180,1.72799,3341.2,3341.0,0.5987]
[1737046459480,1.1293,3341.2,3340.6,1.286]
[1737046459681,0.59869,3341.1,3341.0,0.5987]
[1737046459873,1.1293,3341.2,3340.7,40.8]
[1737046460480,1.1293,3341.2,3340.9,0.59871]
[1737046460680,1.72798,3341.2,3341.0,0.59871]
[1737046461082,1.1293,3341.2,3341.1,0.59869]
[1737046461282,1.72797,3341.2,3340.7,40.8]
[1737046461578,1.1293,3341.2,3340.7,40.8]
[1737046461782,0.5987,3341.1,3341.0,0.5987]
[1737046462282,1.1293,3341.2,3340.7,40.8]
[1737046462781,4.05006348,3341.2,3340.1,4.4938]
[1737046462982,0.59887,3340.1,3340.0,0.59888]
[1737046463175,0.59888,3340.1,3340.0,41.39888]
[1737046463375,3.2078,3340.5,3339.7,5.35538024]
[1737046463685,0.59886,3340.2,3340.1,0.59887]
[1737046463882,0.59885,3340.3,3340.2,0.59884]
[1737046464180,1.65202,3340.4,3340.3,0.59884]
[1737046464379,1.0532,3340.4,3340.3,0.59884]
[1737046464685,3.2078,3340.5,3340.4,0.59882]
[1737046465184,1.1131,3340.6,3340.5,0.5988]
[1737046465986,1.71188,3340.6,3340.5,0.5988]
[1737046466283,0.59883,3340.4,3340.3,0.59883]
[1737046466875,1.1131,3340.6,3340.5,0.5988]
[1737046467079,6.12856348,3340.9,3339.7,2.92076348]
[1737046467080,3.2078,3340.9,3340.8,0.59875]
[1737046467283,3.80653,3340.9,3340.8,0.59875]
[1737046467479,3.2078,3340.9,3340.8,0.59875]
[1737046467680,3.80653,3340.9,3340.8,0.59875]
[1737046467980,3.80653,3340.9,3340.8,40.8]
[1737046468183,3.80654,3340.9,3340.8,0.59875]
[1737046468882,0.59876,3340.8,3340.7,0.59876]
[1737046469081,0.59876,3340.8,3340.7,0.59875]
[1737046469588,3.2078,3340.9,3340.8,0.59875]
[1737046469880,3.80653,3340.9,3340.8,0.59875]
[1737046470186,0.59875,3340.8,3340.7,0.59875]
[1737046471384,3.80653,3340.9,3340.8,0.59875]
[1737046471783,3.2078,3340.9,3340.8,0.59875]
[1737046471979,3.2078,3341.4,3340.7,3.2078]
[1737046472183,0.5987,3341.1,3341.0,0.59869]
[1737046472386,3.2078,3341.4,3340.7,3.2078]
[1737046473086,3.2078,3341.4,3341.0,0.5987]
[1737046473276,0.5987,3341.1,3341.0,0.5987]
[1737046473881,0.59867,3341.3,3341.2,0.59866]
[1737046474081,3.2078,3341.4,3340.8,1.49687]
[1737046474295,3.2078,3341.4,3341.1,0.59868]
[1737046474296,0.59869,3341.2,3341.1,0.59868]
[1737046474490,3.2078,3341.4,3341.0,0.59869]
[1737046474491,0.5987,3341.1,3341.0,0.59869]
[1737046475686,0.59869,3341.2,3341.1,0.59868]
[1737046476492,0.59871,3341.0,3340.7,3.2078]
[1737046476683,0.59868,3341.3,3341.2,0.59867]
[1737046476885,3.2078,3341.4,3341.3,0.59866]
[1737046477087,1.1455,3341.6,3341.5,0.59862]
[1737046478188,1.7441,3341.6,3341.5,0.59862]
[1737046478490,1.1455,3341.6,3341.5,0.59862]
[1737046479188,3.80638,3341.8,3341.2,2.78166]
[1737046479189,3.2078,3341.8,3341.2,2.78166]
[1737046479386,3.2078,3341.8,3341.7,0.59858]
[1737046481192,3.2078,3342.2,3342.1,0.59851]
[1737046481687,1.1038,3342.5,3341.9,2.27041055]
[1737046481891,1.1038,3342.5,3342.1,0.59851]
[1737046482081,0.59853,3342.0,3341.9,0.59854]
[1737046482284,2.59991,3342.5,3341.7,3.2078]
[1737046482285,2.27041055,3342.4,3341.7,3.2078]
[1737046482582,0.59857,3341.8,3341.7,3.2078]
[1737046482787,0.59857,3341.8,3341.3,2.27041055]
[1737046482788,5.47821055,3342.1,3341.3,1.285]
[1737046482985,0.59861,3341.7,3341.6,0.59859]
[1737046483793,1.1462,3341.9,3341.3,1.285]
[1737046484189,0.5986,3341.7,3341.6,0.59858]
[1737046484389,3.80632,3342.1,3342.0,0.59853]
[1737046484891,3.2078,3342.1,3342.0,0.59853]
[1737046485096,1.0379,3342.3,3341.7,6.13246273]
[1737046485295,1.0379,3342.3,3342.2,0.5985]
[1737046486091,1.63638,3342.3,3342.2,0.5985]
[1737046486291,1.63638,3342.3,3341.7,6.87486273]
[1737046486292,0.5985,3342.2,3342.1,0.5985]
[1737046486497,1.63639,3342.3,3342.2,0.5985]
[1737046486698,1.0379,3342.3,3342.2,0.5985]
[1737046487291,1.0379,3342.3,3341.8,3.2078]
[1737046487292,0.59856,3341.9,3341.8,0.59856]
[1737046487791,0.59856,3341.9,3341.8,0.59855]
[1737046487995,0.59862,3341.6,3341.5,0.5986]
[1737046488193,3.2078,3341.6,3341.2,1.285]
[1737046488402,0.59866,3341.4,3341.3,0.59864]
[1737046488594,0.59866,3341.3,3341.2,1.88366]
[1737046488897,0.59871,3341.1,3340.9,4.68290312]
[1737046489093,0.59873,3341.0,3340.9,0.59872]
[1737046489293,0.59872,3341.0,3340.9,0.59871]
[1737046489596,0.59873,3341.0,3340.9,0.59871]
[1737046490193,1.0381,3341.1,3341.0,0.59871]
[1737046491095,0.59872,3341.0,3340.9,0.59871]
[1737046492001,0.59874,3340.9,3340.8,0.59874]
[1737046492905,0.59872,3341.0,3340.9,0.59871]
[1737046493301,0.59874,3340.9,3340.8,0.59874]
[1737046493502,0.59872,3341.0,3340.9,0.59872]
[1737046493897,1.0381,3341.1,3341.0,0.59871]
[1737046494401,3.2078,3341.2,3341.1,0.59869]
[1737046494799,3.80647,3341.2,3341.1,0.59869]
[1737046495303,3.2078,3341.2,3340.5,4.4928]
[1737046495499,0.59878,3340.7,3340.6,0.59878]
[1737046495706,0.59875,3340.8,3340.7,0.59876]
[1737046496203,4.70451,3341.2,3340.8,0.59874]
[1737046496204,0.59874,3340.9,3340.8,0.59874]
[1737046496398,6.67541627,3341.2,3340.5,3.2078]
[1737046496601,0.59875,3340.8,3340.7,0.59875]
[1737046497197,0.59873,3340.9,3340.5,3.2078]
[1737046497393,0.59878,3340.6,3340.5,0.59879]
[1737046497597,0.59878,3340.6,3340.3,1.285]
[1737046497598,2.2322,3340.7,3340.3,1.285]
[1737046497797,0.59878,3340.6,3340.3,1.285]
[1737046497994,0.59878,3340.6,3340.5,0.5988]
[1737046498200,0.59883,3340.4,3340.3,0.59884]
[1737046498407,0.59883,3340.4,3340.3,0.59882]
[1737046498802,0.59882,3340.5,3340.4,0.5988]
[1737046500402,5.69981627,3340.7,3340.1,3.2078]
[1737046500613,4.59481627,3340.7,3340.6,0.59878]
[1737046500907,5.19357627,3340.7,3340.6,0.59878]
[1737046501304,5.19357627,3340.7,3340.1,3.2078]
[1737046501305,4.59481627,3340.7,3340.1,3.2078]
[1737046501500,0.59879,3340.6,3340.5,0.59878]
[1737046501805,0.59879,3340.6,3340.5,41.39878]
[1737046502006,4.59481627,3340.7,3340.6,0.59878]
[1737046502195,3.46761627,3340.8,3340.6,3.2078]
[1737046502394,3.46761627,3340.8,3340.7,3.52342273]
[1737046502701,2.99905834,3340.8,3340.7,3.52342273]
[1737046502901,2.99905834,3340.8,3340.7,0.59876]
[1737046503601,0.5987,3341.1,3341.0,0.59871]
[1737046505099,1.0759,3341.2,3340.6,3.2078]
[1737046505294,1.0759,3341.2,3340.6,0.59876]
[1737046505295,0.59878,3340.7,3340.6,0.59876]
[1737046506210,3.76973491,3341.1,3340.2,45.50492]
[1737046506501,0.59875,3340.8,3340.7,0.59874]
[1737046506705,0.59883,3340.4,3340.3,0.59882]
[1737046506901,3.2078,3340.4,3339.8,3.2078]
[1737046507206,0.59891,3340.0,3339.9,0.5989]
[1737046507403,0.59891,3339.9,3339.8,3.2078]
[1737046507707,1.65421,3339.9,3339.8,3.2078]
[1737046508099,1.65421,3339.9,3339.8,3.80673]
[1737046508499,1.0553,3339.9,3339.8,3.80673]
[1737046508908,1.65421,3339.9,3339.8,3.80673]
[1737046509409,1.0553,3339.9,3339.8,3.80673]
[1737046509603,1.0553,3339.9,3339.8,0.59893]
[1737046509913,1.65421,3339.9,3339.8,0.59893]
[1737046510210,0.59894,3339.7,3339.6,40.8]
[1737046510398,0.59894,3339.7,3339.6,41.39896]
[1737046510606,0.59894,3339.7,3339.6,40.8]
[1737046510907,1.132,3339.8,3339.4,0.59899]
[1737046511108,1.70767,3339.6,3339.5,0.59896]
[1737046511303,1.1087,3339.6,3339.5,0.59896]
[1737046511607,1.70766,3339.6,3339.5,0.59896]
[1737046512004,4.3165,3339.6,3339.2,40.8]
[1737046512210,0.59906,3339.1,3339.0,0.59906]
[1737046512405,0.59905,3339.2,3339.1,0.59904]
[1737046513303,4.3165,3339.6,3339.5,0.59898]
[1737046513718,4.91546,3339.6,3339.5,0.59898]
[1737046513905,4.3165,3339.6,3339.5,0.59898]
[1737046514618,4.3165,3339.6,3339.5,41.39898]
[1737046515205,4.61507714,3340.3,3340.2,0.59885]
[1737046515701,1.1136,3340.6,3340.1,3.2078]
[1737046515907,1.1136,3340.6,3340.5,0.5988]
[1737046516105,1.1136,3340.6,3339.6,0.9015]
[1737046516106,1.1136,3340.6,3339.7,3.2078]
[1737046516303,3.2078,3340.1,3340.0,0.59889]
[1737046516597,1.1136,3340.6,3339.6,1.49737]
[1737046516800,0.59883,3340.4,3340.3,0.59883]
[1737046517001,1.1136,3340.6,3339.5,4.4918]
[1737046517002,1.1136,3340.6,3339.9,3.2078]
[1737046517201,1.1136,3340.6,3340.5,0.5988]
[1737046518105,4.61507714,3341.4,3340.6,0.59878]
[1737046518308,3.3732,3341.3,3341.2,0.59867]
[1737046518508,1.1496,3341.3,3341.2,0.59867]
[1737046519103,1.1496,3341.3,3340.9,40.8]
[1737046519408,1.1496,3341.3,3341.2,0.59867]
[1737046519610,1.74826,3341.3,3341.2,0.59867]
[1737046519808,1.1496,3341.3,3340.9,40.8]
[1737046520004,3.2078,3341.1,3340.5,1.284]
[1737046520209,3.2078,3341.1,3340.7,0.59875]
[1737046520210,0.59873,3340.9,3340.7,0.59875]
[1737046520404,3.2078,3341.1,3340.5,42.084]